Cogmind - Beta 14 @@@ ROGUE MODE // 2024.08.25 @ 23:48:01 Player: MadBadger Result: Destroyed by S-10 Pest with Light Assault Rifle Performance ------------- Evolutions (1) 500 Regions Visited (2) 400 Robots Destroyed (60) 300 Value Destroyed (1030) 1030 Prototype IDs (0) 0 Alien Tech Used (0) 0 Bonus (0) 0 TOTAL SCORE: 2230 Bonus ------- None Cogmind --------- Core Integrity 0/400 Matter 300/300 Energy 98/100 System Corruption 0% Temperature Cool (0) Movement Core (1400) Ox27 Location -9/Materials Parts ------- > --- POWER (1) -------- (None) > --- PROPULSION (3) --- (None) > --- UTILITY (3) ------ Huge Storage Unit Improved Terrain Scanner > --- WEAPON (2) ------- Katana > --- INVENTORY (25) --- Ion Engine Improved Ion Engine Light Treads Light Treads Light Treads Thermal Generator Large Storage Unit Medium Matter Pod (100) Advanced Weight Redist. System Advanced Weight Redist. System Medium Armor Plating Small Laser Small Laser Rocket Launcher Mini Grenade Launcher Welding Torch Plasma Cutter Katana Peak State ------------ > --- POWER ------------ Improved Ion Engine > --- PROPULSION ------- Light Treads Light Treads Light Treads > --- UTILITY ---------- Huge Storage Unit Advanced Weight Redist. System Improved Terrain Scanner > --- WEAPON ----------- Small Laser Katana > --- INVENTORY -------- Ion Engine Improved Ion Engine Light Treads Thermal Generator Large Storage Unit Medium Matter Pod Advanced Weight Redist. System Advanced Weight Redist. System Small Laser Mini Grenade Launcher Welding Torch Plasma Cutter Katana [Rating: 18] Favorites ----------- Power Light Ion Engine Engine Light Ion Engine Propulsion Aluminum Leg Treads Light Treads Leg Aluminum Leg Wheel Wheel Utility Improved Terrain Scanner Device Improved Terrain Scanner Storage Large Storage Unit Protection Power Shielding Weapon Small Laser Energy Gun Small Laser Ballistic Gun Assault Rifle Launcher Grenade Launcher Special Weapon Mining Laser Slashing Weapon Katana Build | -11 -10 -9 ------- Run | Yrd Mat Mat Slots Evolved 2 | . . 2 Power . | . . . Propulsion 1 | . . 1 Utility 1 | . . 1 Weapon . | . . . Parts Attached 34 | 8 2 24 Power 4 | 1 . 3 Engine 4 | 1 . 3 Core . | . . . Reactor . | . . . Propulsion 11 | 4 . 7 Treads 5 | . . 5 Leg 2 | 2 . . Wheel 4 | 2 . 2 Hover . | . . . Flight . | . . . Utility 9 | 1 2 6 Device 6 | 1 . 5 Storage 2 | . 1 1 Processor . | . . . Hackware . | . . . Protection 1 | . 1 . Artifact . | . . . Weapon 10 | 2 . 8 Energy Gun 5 | 1 . 4 Energy Cannon . | . . . Ballistic Gun 2 | 1 . 1 Ballistic Cannon . | . . . Launcher 1 | . . 1 Special Weapon 1 | . . 1 Impact Weapon . | . . . Slashing Weapon 1 | . . 1 Piercing Weapon . | . . . Special Melee Weapon . | . . . Unidentified Prototypes . | . . . Parts Lost 18 | . . 18 Power 3 | . . 3 Propulsion 5 | . . 5 Utility 3 | . . 3 Weapon 7 | . . 7 Highest Loss Streak 7 | . . 7 To Critical Strikes 2 | . . 2 Average Slot Usage (%) 88 | . 99 81 Engine 11 | . 14 10 Treads 10 | . . 15 Leg 12 | . 28 4 Wheel 2 | . . 4 Device 14 | . 14 14 Storage 11 | . 11 11 Energy Gun 11 | . 14 10 Ballistic Gun 7 | . 14 3 Slashing Weapon 4 | . . 6 Peak Build Rating 18 | 8 10 18 Average Rating 11 | 4 8 13 On Entrance 5 | . 8 9 Naked Turns . | . . . Heaviest Build 91 | 7 27 91 Greatest Support 60 | 20 20 60 Greatest Overweight (x) 7 | . 1 7 Average Overweight (x) 1 | . . 1 Largest Inventory Capacity 25 | 5 15 25 Average Capacity 17 | 5 12 20 Most Carried 19 | 4 13 19 Average Carried 9 | 2 5 11 Final Capacity 25 | 5 15 25 Final Carried 18 | 3 8 18 Class Distribution -------------------- 64% | Mutant 35% | Scavenger-Mutant Dominant Class ---------------- Mutant | -10/Materials Scavenger-Mutant | -9/Materials Resources | -11 -10 -9 ----------- Run | Yrd Mat Mat Matter Collected 947 | 303 207 437 Remotely . | . . . Salvage Created 1979 | 101 505 1373 Parts 139 | 10 34 95 Haulers Intercepted 1 | . . 1 Recyclers Shooed 6 | . 3 3 Parts Field Recycled . | . . . Retrieved Matter . | . . . Parts Self-Destructed . | . . . Prevented . | . . . Kills | -11 -10 -9 ------- Run | Yrd Mat Mat Combat Hostiles Destroyed 24 | 1 7 16 Guns 21 | 1 7 13 AOE 3 | . . 3 Classes Destroyed 10 | 2 5 3 Worker 11 | . 2 9 Builder 8 | . 1 7 Tunneler 6 | 3 . 3 Hauler 1 | . . 1 Recycler 5 | . 2 3 Watcher 5 | . 3 2 Swarmer 3 | . 3 . Grunt 17 | 1 4 12 Brawler 1 | . . 1 Sentry 3 | . . 3 Best Kill Streak 10 | 4 6 10 Combat Bots Only 4 | 1 3 4 Max Kills in Single Turn 2 | 1 2 2 Gunslinging . | . . . Exploded 1 | . . 1 Melee . | . . . Uniques/NPCs Destroyed . | . . . Combat | -11 -10 -9 -------- Run | Yrd Mat Mat Hostile Shots Fired 212 | 5 36 171 Missed 63 | 1 19 43 Damage Taken 1641 | 46 165 1430 Core 426 | . 21 405 Absorbed by Shields . | . . . Redirected to Shielding 3 | . 3 . Regen/Repaired (Parts) 87 | . . 87 Core Remaining (%) 95 | 100 91 . Volleys Fired 182 | 11 57 114 Largest 2 | 2 2 2 Hottest 70 | 60 60 70 Shots Fired 294 | 22 111 161 Gun 290 | 22 111 157 Cannon . | . . . Launcher 4 | . . 4 Special . | . . . Kinetic 141 | 11 57 73 Thermal 102 | 11 54 37 Explosive 4 | . . 4 Electromagnetic 47 | . . 47 Robot Hit Streak 13 | 9 6 13 Robot Miss Streak 4 | 2 4 4 Penetration Max . | . . . Secondary Targets . | . . . Shots Hit Robots 186 | 15 62 109 Core Hits 85 | 5 25 55 Critical Kills . | . . . Critical Parts Destroyed 1 | . 1 . Critical Strikes 2 | . 1 1 Destroy 1 | . 1 . Corrupt 1 | . . 1 Melee Attacks 14 | . . 14 Impact . | . . . Slashing 14 | . . 14 Piercing . | . . . Sneak Attacks 8 | . . 8 Combat Hostiles . | . . . Follow-up Attacks . | . . . Damage Inflicted 3237 | 187 709 2341 Guns 2134 | 187 708 1239 Cannons . | . . . Explosions 502 | . . 502 Melee 592 | . . 592 Ramming 9 | . 1 8 Kinetic 966 | 78 414 474 Thermal 874 | 109 294 471 Explosive 284 | . . 284 Electromagnetic 512 | . . 512 Impact . | . . . Slashing 592 | . . 592 Piercing . | . . . Highest Corruption 2 | . 2 . Average Corruption 2 | . 2 . Corruption Purged . | . . . Corruption Blocked . | . . . Overload Shots . | . . . Overflow Damage 88 | . . 88 Projectiles . | . . . Explosions 10 | . . 10 Melee 78 | . . 78 Knockbacks . | . . . Impact . | . . . Kinetic . | . . . Secondary . | . . . Self-Inflicted Damage 42 | . . 42 Shots 1 | . . 1 Rammed 1 | . . 1 Targets Rammed 2 | . 1 1 Kicked 1 | . 1 . Crushed . | . . . Highest Temperature 54 | 18 24 54 Average Temperature 15 | 16 11 16 Received Heat Transfer 666 | 24 66 576 Siege Activations . | . . . Robots Corrupted . | . . . Combat Hostiles . | . . . Parts Fried 1 | . . 1 Impact Corruptions . | . . . Robots Melted . | . . . Combat Hostiles . | . . . Parts Melted . | . . . Heat Transferred 1750 | 250 675 825 Parts Sabotaged . | . . . Parts Stolen . | . . . Parts Stripped . | . . . Power Chain Reactions 5 | . . 5 Alert | -11 -10 -9 ------- Run | Yrd Mat Mat Peak Influence 342 | 35 169 342 Initial 22 | . 22 8 Average 100 | 14 56 133 Maximum Alert Level 1 | . . 1 Low Security (%) 85 | 100 100 75 Level 1 14 | . . 24 Level 2 . | . . . Level 3 . | . . . Level 4 . | . . . Level 5 . | . . . High Security . | . . . Max Security . | . . . Squads Dispatched 4 | . 2 2 Investigation 1 | . 1 . Extermination . | . . . Reinforcement 3 | . 1 2 Assault . | . . . Garrison . | . . . Intercept . | . . . Searches Triggered . | . . . Construction Impeded . | . . . Haulers Reinforced . | . . . Active Scanning Responses . | . . . Cargo Convoy Interrupts . | . . . Stealth | -11 -10 -9 --------- Run | Yrd Mat Mat Distress Signals 3 | . 1 2 Communications Jammed . | . . . Distress Signals . | . . . Times Spotted 48 | 1 20 27 Peak Tracking Total 4 | 1 4 4 Tactical Retreats 2 | . 1 1 Traps | -11 -10 -9 ------- Run | Yrd Mat Mat Traps Triggered 4 | . 2 2 Indirectly . | . . . Trap Hack Attempts . | . . . Triggered . | . . . Disarmed . | . . . Reprogrammed . | . . . Reused . | . . . Traps Extracted . | . . . Installed . | . . . Triggered . | . . . Machines | -11 -10 -9 ---------- Run | Yrd Mat Mat Machines Disabled 2 | . 2 . Max in Single Turn 1 | . 1 . Machines Repaired . | . . . Machines Dismantled . | . . . Machines Sabotaged . | . . . Overloaded Fab Kills . | . . . Hacking | -11 -10 -9 --------- Run | Yrd Mat Mat Machines Accessed 5 | . 1 4 Terminals 2 | . 1 1 Fabricators . | . . . Repair Stations 1 | . . 1 Recycling Units 1 | . . 1 Scanalyzers 1 | . . 1 Garrison Access . | . . . Total Hacks 10 | . 3 7 Successful 8 | . 2 6 Failed 2 | . 1 1 Catastrophic 1 | . . 1 Database Lockouts . | . . . Manual . | . . . Terminals 5 | . 3 2 Fabricators . | . . . Repair Stations 2 | . . 2 Recycling Units 1 | . . 1 Scanalyzers 2 | . . 2 Garrison Access . | . . . Terminal Hacks 3 | . 2 1 Record 2 | . 2 . Alert Level 1 | . . 1 Fabricator Hacks . | . . . Repair Station Hacks 2 | . . 2 Scan Component 1 | . . 1 Repair 1 | . . 1 Recycling Unit Hacks 1 | . . 1 Retrieve Components 1 | . . 1 Scanalyzer 2 | . . 2 Insert Component 1 | . . 1 Analyze 1 | . . 1 Garrison Access Hacks . | . . . Unauthorized Hacks . | . . . Terminals . | . . . Fabricators . | . . . Repair Stations . | . . . Recycling Units . | . . . Scanalyzers . | . . . Garrison Access . | . . . Data Cores Recovered . | . . . Used . | . . . Hacking Detections 3 | . 1 2 Full Trace Events 1 | . 1 . Feedback Events . | . . . Feedback Blocked . | . . . Robot Schematics Acquired . | . . . Robots Built . | . . . Authchips . | . . . Time . | . . . Total Robot Build Rating . | . . . Part Schematics Acquired 1 | . . 1 Parts Built . | . . . Authchips . | . . . Time . | . . . Total Part Build Rating . | . . . Parts Repaired 1 | . . 1 Time 26 | . . 26 Parts Recycled . | . . . Recycled Matter . | . . . Retrieved Matter . | . . . Retrieved Components 2 | . . 2 Parts Scanalyzed 1 | . . 1 Part Schematics Acquired 1 | . . 1 Parts Damaged . | . . . Bothacking | -11 -10 -9 ------------ Run | Yrd Mat Mat Used RIF Installer . | . . . Robots Hacked . | . . . Non-combat . | . . . Combat . | . . . Robot Hacks Applied . | . . . Relay Couplers Released . | . . . Fabnet Peak Effective % . | . . . Robots Rewired . | . . . Allies Hacked . | . . . Hacks Repelled . | . . . Allies | -11 -10 -9 -------- Run | Yrd Mat Mat Total Allies . | . . . Largest Group . | . . . Highest-Rated Group . | . . . Highest-Rated Ally . | . . . Total Orders . | . . . Ally Attacks . | . . . Total Damage . | . . . Kills . | . . . Allies Corrupted . | . . . Allies Melted . | . . . Intel | -11 -10 -9 ------- Run | Yrd Mat Mat Robot Analysis Total . | . . . Derelict Logs Recovered . | . . . Drone Launches . | . . . Drone Recoveries . | . . . Exploration | -11 -10 -9 ------------- Run | Yrd Mat Mat Turns Passed 3325 | 172 1150 2003 Spaces Moved 1494 | 115 565 814 Core 32 | 17 . 15 Treads 403 | . . 403 Legs 714 | 91 565 58 Wheels 345 | 7 . 338 Hover . | . . . Flight . | . . . Fastest Speed 50 | 50 120 95 Average Speed 180 | 107 170 198 Slowest Speed 480 | 120 190 480 Overloaded Moves . | . . . Propulsion Burnouts . | . . . Robots Hopped . | . . . Cave-ins Triggered . | . . . Exploration Rate (%) 35 | 6 55 46 Regions Visited 2 Branch Regions . Pre-discovered Areas . | . . . Known Exits Taken . | . . . Unknown Exits Taken 2 | 1 1 . Scrap Searched . | . . . Spaces Dug 16 | . . 16 Terrain Destroyed 48 | . . 48 Melee . | . . . Projectile . | . . . AOE 48 | . . 48 Terrain Rammed . | . . . Walls Destroyed . | . . . Machines Disabled . | . . . Actions | -11 -10 -9 --------- Run | Yrd Mat Mat Total 1804 | 138 646 1020 Wait 17 | . 1 16 Move 1492 | 114 564 814 Hop . | . . . Pick Up 51 | 5 13 33 Fast Attach 5 | 4 1 . Attach 23 | 2 . 21 Detach 1 | . . 1 Swap 6 | 2 1 3 Drop 11 | . 8 3 Fire 182 | 11 57 114 Melee 14 | . . 14 Ram 1 | . . 1 Kick 1 | . 1 . Crush . | . . . Escape Stasis . | . . . Rewire . | . . . Trap . | . . . Miscellaneous . | . . . Route ------- -11/Scrapyard -10/Materials (discovered 3 exits: *Mat x2 / [*Min]) -9/Materials (discovered 2 exits: [*Mat] / [*Min]) History --------- Turn | Location | Event 2 | -11/Scrapyard | Met Revision 17 81 | -11/Scrapyard | Discovered new exit (range 8) 173 | -11/Scrapyard | Entered Materials 316 | -10/Materials | Build established: Mutant 618 | -10/Materials | Discovered new exit (range 13) 654 | -10/Materials | Discovered new exit (range 13) 1082 | -10/Materials | Discovered new exit (range 15) 1323 | -10/Materials | Entered another Materials area 1323 | -9/Materials | Evolved 2 slots: Propulsion x1, Utility x1 1505 | -9/Materials | Repaired Assault Rifle 1596 | -9/Materials | Lost 5 parts (1n2u2w) 2024 | -9/Materials | Core integrity fell below 50% 2101 | -9/Materials | Lost 7 parts (1p2n4w) 2435 | -9/Materials | Build established: Scavenger-Mutant 2465 | -9/Materials | Discovered new exit (range 16) 2603 | -9/Materials | Discovered new exit (range 12) 3297 | -9/Materials | Core integrity fell below 20% 3326 | -9/Materials | Destroyed by S-10 Pest with Light Assault Rifle Last Messages --------------- Imp. Terrain Scanner severed. Acquired Lgt. Treads. U-05 Engineer lays Concrete. Acquired Lgt. Treads. Sneak attack on U-05 Engineer. Destroyed Lgt. Ion Engine. U-05 Engineer destroyed. Acquired Imp. Terrain Scanner. Acquired 10 matter. C-30 ARC bursts open, deploying its payload. S-10 Pest unfolds itself. U-05 Engineer suffers critical hit (Destroy). U-05 Engineer destroyed. K-01 Serf collects debris. Critical hit (Destroy). Imp. Ion Engine destroyed. Sml. Laser destroyed. Adv. Weight Redist. System destroyed. Critical hit (Destroy). Lgt. Treads destroyed. Map ----- +----------------------------------------------------+ | ?### ### """ # #?????? | | ##?# #?# """ ###################### #????"? | | #### #?# #?# !#?????#### #??"""" | | ## #?#+##########! #????#?#?# %# """"" | | ""## ###%### # ! #??#?#??## + """"" | | ""# ## ### """ # #????#???# # """ | | ""# = %#*""" # """ """ ##??????## =*#?? | | + % !% / " # """ """ #?#??????# =%#???? | | ""# # ?# """ """ #?#?#??#?# #?????? | | ""# ## # ?# #???##???# #?????? | | ""### #### %##+##########+####??#??#?## #?????? | | #?# #??# % *% ^ #??#?????#?# #?????? | | ##### #?## #?#?####???# ####### | | ??### #### ""## ?????? ?# #!=^ | | #?###+#########% ^ T"##???? ?## #= | | ????# # ! ^ ""#??"??? ## *# " | | ??### """"""" #==^ ##??"???? ?#%=%# " | | ###?# """"""" + %""% ##?? ? ?? ?#! # "" " | | ????# """"""" # """" T#"??? ???# + "T " | | ????# """"""" # """" ##??"? ????# # "" " | | ##?## """"""" # ##""? ? ??# # = | | ????# + ! #???? ? ??## #####+# | | ????# ###" !#######???# ####!# | | ???###+##########%" *a%==! ## !!! | | ?????# ###?#??#?#" ##+###s####### ## ! !*! | | ?????# #????#?#?# ## s @ #?? ?# !!%% | | ?????# #???#??#?#+# ## ss #?????## ####!= | | ?????# ##??? ?? # ## """"""" #??????#######?## % | | ?????# ?#????? ??+ + """"""" #?? ???????????## | | ?????###?? ?"??? #### """"""" #?????????? ???## | | ???????#????"?? ? ???# """"""" #?????????? ???## | | ????????????? ????#??# """"""" #???????????????# | | ?????????????????????# #???????????????# | | ?#????????????" ?????###########???????????????# | | ??????#???????????#????#??????#????????????#???# | | ?#??????????? ????#????#???????????????????????# | | ????????????#???????????#????????# ? ??????????# | | ????????????????????????#????????#?????????????# | | ?????????????????????????#?????????? ??????????# | | ??????????????????????? ???????????????? ??????# | | ????????????????????????????? ????????????????# | | ????????????????????? ?????????????????????????# | | ???????????????????????????????????????????????# | | ???????????????????????????????????????????????? | | ???????????????????????????????????????????????? | | ???????????????????????????????????????????????? | | ?????????????????????????????????????????????????? | | ?????????????????????????????????????????????????? | | ?????????????????????????????????????????????????? | | ?????????????????????????????????????????????????? | +----------------------------------------------------+ Best States ------------- Heat Dissipation 28 Energy Generation 12 Energy Capacity 265 Matter Stores 300 Matter Capacity 300 Sight Range 16 Terrain Scan Range 16 Terrain Scan Density 10 Additional Mass Support 9 Power Shielding 33 Evasion (%) 55 Recoil Reduction 3 Item Schematics ----------------- Mining Laser | -9/Materials | Scanalyzed Robot Schematics ------------------ None Fabricated ------------ Nothing Alien Tech Used ----------------- None Achievements -------------- Loot Pinata Part-time Mechanic Challenges ------------ None Game ------ Seed WeaponsTrackerDoomcannon Manual? 0 Play Time 00:35:28 Cumulative 2.0 hours Start 2024.08.25 @ 23:07:53 End 2024.08.25 @ 23:48:01 Sessions 1 Manual Loads 0 Difficulty Rogue Special Mode None Game No. 2 Rogue 2 Adventurer 0 Explorer 0 Win Type - Total 0 Types 0/0/0/0/0/0/0/0/0 Lore% 0 Gallery% 3 Achievement% 3 Wizard Run 0 Options --------- Layout 0 ASCII 0 Keyboard 1 Movement Numpad Keybinds 0 Fullscreen 1 Font 24/Smallcaps Map View 76x50 Zoom Use 0% Tactical HUD 0 Map Filters NONE Filters NONE Steam 1 RUN: 073807a0-b88d-4f89-b58c-f2b5e6646f6d